bitfinex/quotes_ETHUSD_20251021
["timestamp","ask_amount","ask_price","bid_price","bid_amount"]
[1761057960978,2.5426246,3933.0,3932.8,3.35]
[1761057961462,0.4049,3933.5,3932.1,3.35]
[1761057961666,2.54295917,3932.5,3932.1,3.35]
[1761057961848,0.1437,3932.9,3932.2,1.728]
[1761057961849,2.54271907,3932.8,3932.2,1.728]
[1761057962049,0.17548316,3932.9,3932.2,1.728]
[1761057962050,5.89201884,3933.9,3932.2,2.185]
[1761057962260,2.54284816,3932.6,3932.2,1.728]
[1761057962460,2.54297866,3932.4,3932.2,1.728]
[1761057962668,2.54293402,3932.5,3932.2,1.728]
[1761057962967,2.54299005,3932.4,3932.3,0.50688]
[1761057963563,0.03178558,3932.6,3932.3,0.50688]
[1761057963740,0.6108,3933.8,3932.6,0.50688]
[1761057963948,0.001,3933.8,3932.8,1.728]
[1761057964139,0.001,3933.8,3933.1,0.50688]
[1761057964333,0.001,3933.6,3933.5,0.68348]
[1761057966054,0.001,3933.6,3933.5,5.4172652]
[1761057966369,0.001,3933.6,3933.5,5.53714515]
[1761057966669,0.001,3934.6,3934.0,0.50688]
[1761057966869,0.001,3934.6,3934.5,4.77649901]
[1761057967169,0.001,3934.6,3934.5,10.71754919]
[1761057967462,0.001,3934.6,3934.5,8.58249901]
[1761057967687,0.001,3934.6,3934.5,5.58388]
[1761057968051,0.001,3934.6,3934.5,5.58588]
[1761057969075,0.001,3934.6,3934.5,8.58449901]
[1761057970062,0.001,3934.6,3934.5,5.58288]
[1761057970279,0.001,3934.6,3934.5,6.03988]
[1761057970670,0.001,3934.6,3934.5,5.58288]
[1761057971180,0.001,3934.6,3934.5,8.58149901]
[1761057971493,0.001,3934.6,3934.5,5.58288]
[1761057971696,0.001,3934.6,3934.5,8.58149901]
[1761057972417,2.76872407,3937.0,3934.5,8.58149901]
[1761057972418,2.76875718,3937.0,3934.6,1.728]
[1761057972708,2.76875718,3937.0,3934.5,8.58149901]
[1761057972709,0.2245,3937.6,3936.4,0.50688]
[1761057972872,0.2245,3937.6,3936.6,0.50688]
[1761057973258,0.6054,3937.6,3936.6,0.50688]
[1761057973574,0.2245,3937.6,3936.8,0.50688]
[1761057973810,0.2245,3937.6,3936.9,3.349]
[1761057974114,0.2245,3937.6,3937.0,0.50688]
[1761057974404,0.41264603,3937.5,3935.8,0.457]
[1761057974604,2.53974704,3937.4,3936.3,3.349]
[1761057974761,0.2287,3936.4,3935.4,0.1756]
[1761057975139,0.414,3937.3,3935.5,3.35548268]
[1761057975429,2.540274,3936.6,3935.8,0.50688]
[1761057975628,0.4685,3937.2,3936.0,2.23488]
[1761057975828,0.4685,3937.2,3936.0,0.50688]
[1761057976027,0.50024845,3937.2,3936.0,2.23488]
[1761057976187,2.54013411,3936.8,3935.5,2.23488]
[1761057976504,2.54077476,3935.9,3935.7,0.1264]
[1761057976710,0.1264,3935.7,3935.0,0.1264]
[1761057976910,0.1264,3935.3,3934.9,3.349]
[1761057977422,0.1264,3935.7,3935.2,0.1841]
[1761057977716,0.1264,3936.2,3935.6,0.50688]
[1761057977918,0.1264,3936.2,3935.6,3.85688]
[1761057978088,0.1264,3936.2,3935.6,4.50930527]
[1761057978280,0.1264,3936.2,3935.7,0.50688]
[1761057978484,0.1264,3936.2,3935.9,0.50688]
[1761057978719,0.1264,3936.2,3935.9,3.04758402]
[1761057978918,0.1264,3936.2,3935.8,3.04765511]
[1761057979220,0.1264,3936.2,3935.8,1.69886445]
[1761057979520,0.001,3936.5,3935.8,1.69886445]
[1761057979521,0.001,3936.5,3936.2,0.50688]
[1761057979827,2.66777246,3936.5,3936.3,3.348]
[1761057979991,0.1274,3936.5,3936.3,3.348]
[1761057980393,0.001,3936.5,3936.4,0.50688]
[1761057980593,0.001,3936.5,3936.4,3.349]
[1761057980594,2.54137372,3936.5,3936.4,3.349]
[1761057981006,0.001,3936.5,3936.4,3.349]
[1761057981194,0.001,3936.5,3936.4,3.85588]
[1761057982113,0.001,3936.5,3936.4,7.76112049]
[1761057982317,0.001,3936.5,3936.4,9.48264726]
[1761057984208,0.001,3936.5,3936.4,9.47964726]
[1761057984915,0.001,3936.5,3936.4,29.4152022]
[1761057986468,0.001,3936.9,3936.8,3.04701411]
[1761057986763,0.001,3936.9,3936.8,9.28803743]
[1761057986962,0.001,3937.3,3937.2,3.04675605]
[1761057987255,0.001,3938.3,3938.2,3.04611112]
[1761057987466,0.001,3938.3,3938.2,8.11911112]
[1761057987623,0.001,3938.3,3938.2,8.55461112]
[1761057987962,0.001,3938.3,3938.2,8.17193018]
[1761057988253,0.001,3938.3,3938.2,8.55461112]
[1761057988660,0.001,3938.3,3938.2,5.20961112]
[1761057988837,0.001,3938.3,3938.2,8.55461112]
[1761057990351,0.001,3938.3,3938.2,8.68101112]
[1761057990853,0.001,3938.3,3938.2,8.67801112]
[1761057991047,0.001,3938.3,3938.2,11.2700613]
[1761057991851,0.001,3938.3,3938.2,7.4925613]
[1761057992054,0.001,3938.3,3938.2,8.24251112]
[1761057992223,0.001,3938.3,3938.2,8.67801112]
[1761057992529,0.001,3938.3,3938.2,8.24251112]
[1761057992731,0.001,3938.3,3938.2,8.67801112]
[1761057993460,0.001,3938.3,3938.2,4.90051112]
[1761057993631,0.001,3938.3,3938.2,1.728]
[1761057993873,0.001,3938.3,3938.2,3.342]
[1761057994037,0.4393,3938.3,3936.6,0.4355]
[1761057994233,2.53931373,3938.1,3937.2,1.562]
[1761057994434,0.031742,3938.0,3936.6,0.4355]
[1761057994666,0.47004038,3938.2,3936.2,0.6111]
[1761057994824,2.53954439,3937.8,3937.0,2.53995151]
[1761057995023,2.53954439,3937.8,3937.1,5.075]
[1761057995344,2.75195871,3937.7,3937.1,5.075]
[1761057995653,2.75195871,3937.7,3936.8,2.54013086]
[1761057995654,2.53962216,3937.6,3937.2,3.346]
[1761057995845,2.99582216,3937.6,3936.7,1.728]
[1761057996151,0.4562,3937.6,3937.2,2.53981995]
[1761057996356,0.2124,3937.7,3937.5,1.728]
[1761057996561,0.2124,3937.7,3937.5,3.346]
[1761057996736,0.6686,3937.7,3937.6,0.50688]
[1761057996936,2.53961804,3937.6,3937.5,3.346]
[1761057997240,2.53961804,3937.6,3936.2,2.02980622]
[1761057997241,0.4562,3937.6,3936.2,2.02980622]
[1761057997424,0.4562,3937.5,3936.4,1.728]
[1761057997636,2.99589058,3937.5,3936.8,1.728]
[1761057997842,2.99589058,3937.5,3936.7,2.54015367]
[1761057997843,2.53975783,3937.4,3936.3,2.24008612]
[1761057998039,2.53997729,3937.1,3936.3,2.24008612]
[1761057998264,2.53997729,3937.1,3936.5,1.728]
[1761057998570,2.53997729,3937.1,3936.4,5.88438653]
[1761057998571,2.53999628,3937.1,3936.7,1.728]
[1761057998976,0.6106,3937.0,3936.8,0.50688]
[1761057999173,0.671,3937.7,3936.8,0.50688]
[1761057999379,2.53974325,3937.5,3936.9,3.343]
[1761057999676,0.2124,3937.7,3937.0,3.0468768]
[1761057999864,0.668,3937.7,3937.0,0.50688]
[1761058000850,0.2124,3937.7,3937.3,0.50688]
[1761058001050,0.2124,3937.7,3937.4,3.342]
[1761058001281,0.4556,3937.6,3937.4,3.342]
[1761058001785,0.2124,3937.7,3937.5,0.50688]
[1761058002075,0.4532,3937.6,3937.5,0.50688]
[1761058002282,2.53968253,3937.5,3937.0,0.50688]
[1761058002578,2.53973414,3937.5,3937.2,0.50688]
[1761058002779,0.2148,3937.9,3937.2,0.50688]
[1761058003144,2.53970724,3937.5,3937.2,0.50688]
[1761058003339,2.99290724,3937.5,3937.2,0.50688]
[1761058003545,0.4532,3937.4,3937.2,0.50688]
[1761058004246,0.1264,3937.7,3937.2,0.50688]
[1761058004576,0.1264,3937.7,3937.0,0.1264]
[1761058004577,2.53981154,3937.3,3937.0,0.1264]
[1761058004793,2.53981154,3937.3,3937.1,3.342]
[1761058005073,3.11936074,3937.4,3937.1,3.342]
[1761058005298,2.9930317,3937.3,3937.1,3.342]
[1761058005677,2.99301498,3937.3,3937.1,3.342]
[1761058005895,0.4532,3937.2,3937.1,3.84888]
[1761058006314,0.1264,3937.4,3937.1,0.50688]
[1761058006605,2.75427529,3937.9,3937.4,0.50688]
[1761058006809,0.2148,3937.9,3937.4,0.63328]
[1761058007022,0.001,3938.3,3937.7,1.728]
[1761058007177,0.001,3938.3,3937.9,0.50688]
[1761058007374,2.54021506,3938.3,3937.9,0.50688]
[1761058007573,0.4508,3938.2,3937.9,0.50688]
[1761058007775,2.99003813,3938.2,3937.9,0.50688]
[1761058007978,2.99003813,3938.2,3937.3,4.26780701]
[1761058007979,2.53948298,3937.9,3936.5,0.4355]
[1761058008177,2.53948298,3937.9,3937.4,0.1264]
[1761058008492,0.6704,3937.8,3937.7,0.50688]
[1761058008690,0.2118,3937.8,3937.7,0.50688]
[1761058008914,0.1264,3938.0,3937.7,3.04643354]
[1761058009113,2.54016668,3938.3,3937.9,0.50688]
[1761058009432,2.54016668,3938.3,3938.0,3.339]
[1761058009634,2.53929559,3938.1,3938.0,3.84588]
[1761058009936,0.48544038,3938.2,3937.0,0.50688]
[1761058010097,2.53943635,3937.9,3937.1,3.338]
[1761058010303,2.53943635,3937.9,3937.2,0.50688]
[1761058010505,2.75123635,3937.9,3937.2,0.50688]
[1761058010808,2.53950113,3937.8,3937.2,3.04675228]
[1761058011015,2.53950113,3937.8,3937.2,0.50688]
[1761058011214,3.20743468,3937.9,3937.2,0.50688]
[1761058011449,3.20746923,3937.9,3937.3,3.84488]
[1761058011598,2.539495,3937.8,3937.3,3.84488]
[1761058011938,2.53963326,3937.6,3937.4,3.337]
[1761058012136,2.53963326,3937.6,3937.0,2.23488]
[1761058012350,2.9957771,3937.7,3937.2,0.50688]
[1761058012512,0.2118,3937.9,3937.2,0.50688]
[1761058012714,2.53960343,3937.7,3937.1,0.50688]
[1761058012928,2.53970711,3937.5,3937.2,3.336]
[1761058013444,2.53964215,3937.6,3937.2,3.336]
[1761058013614,0.4562,3937.8,3937.2,3.336]
[1761058013810,2.53962145,3937.6,3937.3,0.50688]
[1761058014022,2.53974704,3937.4,3936.6,4.26824625]
[1761058014224,0.03174603,3937.5,3936.9,0.50688]
[1761058014548,0.4522,3937.4,3937.1,0.50688]
[1761058014715,0.664,3937.9,3937.1,0.50688]
[1761058015037,0.664,3937.9,3937.2,1.728]
[1761058015207,0.001,3937.8,3937.3,3.04667048]
[1761058015404,0.001,3937.8,3937.5,0.50688]
[1761058016037,0.001,3937.8,3937.6,3.335]
[1761058016038,0.2181,3937.7,3937.6,3.335]
[1761058016608,2.53972872,3937.5,3937.1,0.002]
[1761058016912,1.24278427,3937.7,3937.3,2.23488]
[1761058017099,2.53968328,3937.5,3937.3,2.23488]
[1761058017304,2.98954152,3937.6,3937.3,2.23488]
[1761058017533,0.4499,3937.5,3937.4,3.335]
[1761058017734,0.001,3937.8,3937.1,0.002]
[1761058017934,0.001,3937.8,3937.5,0.50688]
[1761058019306,0.4499,3937.7,3937.1,1.73]
[1761058019515,2.98946494,3937.7,3937.3,1.728]
[1761058019934,0.4499,3937.6,3937.2,3.84188]
[1761058020510,0.001,3937.8,3937.4,0.50688]
[1761058020834,0.001,3937.8,3937.6,0.50688]
[1761058021010,0.001,3937.8,3937.7,8.10943354]
[1761058021215,0.001,3937.8,3937.7,8.68833354]
[1761058022040,0.001,3937.8,3937.7,8.81653354]
[1761058022334,0.001,3937.8,3937.7,5.60793354]
[1761058022543,0.001,3937.8,3937.7,9.82483779]
[1761058023106,0.001,3937.8,3937.7,9.69843779]
[1761058023445,0.001,3937.8,3937.7,6.10883779]
[1761058023743,0.001,3937.8,3937.2,21.88142761]
[1761058023744,0.001,3937.8,3937.0,0.1766]
[1761058023967,0.001,3937.8,3937.3,1.728]
[1761058024165,0.001,3937.8,3936.7,0.002]
[1761058024166,2.5405036,3937.8,3937.4,3.334]
[1761058024342,2.9927036,3937.8,3937.5,1.728]
[1761058024543,0.4522,3937.7,3936.8,1.728]
[1761058024743,0.4522,3937.7,3937.3,1.728]
[1761058024954,2.53961804,3937.6,3936.7,0.002]
[1761058025137,0.77668456,3937.7,3937.2,3.334]
[1761058025331,0.4522,3937.6,3937.2,3.334]
[1761058025577,0.001,3937.8,3937.2,3.334]
[1761058025872,2.53969337,3937.5,3937.3,3.334]
[1761058026092,2.53974704,3937.4,3937.3,3.334]
[1761058026369,0.4522,3937.4,3937.3,3.334]
[1761058026573,2.53959724,3937.7,3937.3,3.334]
[1761058026732,0.48394522,3937.6,3937.1,0.002]
[1761058026936,0.48394522,3937.6,3937.2,3.334]
[1761058027180,0.4522,3937.6,3937.2,3.334]
[1761058027335,0.001,3937.8,3937.3,3.334]
[1761058027739,0.001,3937.8,3937.4,2.23488]
[1761058028061,0.001,3937.8,3937.5,0.00645476]
[1761058028240,0.001,3937.8,3937.7,3.04643354]
[1761058028436,0.001,3937.8,3937.7,5.56888]
[1761058029083,0.001,3937.8,3937.7,1.728]
[1761058029280,2.99268905,3937.8,3937.7,5.063]
[1761058029597,2.99270277,3937.8,3937.7,3.334]
[1761058029894,0.001,3937.8,3937.7,3.84088]
[1761058030210,0.001,3937.8,3937.7,5.56888]
[1761058032872,0.001,3937.8,3937.7,5.56988]
[1761058035193,0.001,3937.8,3937.7,2.23488]
[1761058035355,0.001,3937.8,3937.7,5.56888]
[1761058035866,0.001,3937.8,3937.7,9.25686154]
[1761058036069,0.001,3937.8,3937.7,8.80436154]
[1761058036474,0.001,3937.8,3937.7,6.264808]
[1761058037055,0.001,3937.8,3937.7,8.80436154]
[1761058037283,0.001,3937.8,3937.7,6.264808]
[1761058037486,0.001,3937.8,3937.7,8.80436154]
[1761058037890,0.001,3937.8,3937.7,6.264808]
[1761058038074,0.001,3937.8,3937.7,5.69528]
[1761058038658,0.001,3937.8,3937.7,2.36128]
[1761058038860,0.001,3937.8,3937.7,5.69528]
[1761058039163,2.54048905,3937.8,3937.7,2.36128]
[1761058039364,0.4539,3937.8,3937.7,3.334]
[1761058039563,0.001,3937.8,3937.7,3.84088]
[1761058039763,0.6807,3937.8,3937.7,3.84088]
[1761058040189,0.001,3937.8,3937.7,3.84088]
[1761058040365,0.001,3937.8,3937.7,6.38043354]
[1761058040693,0.001,3937.8,3937.7,8.57773354]
[1761058040900,0.001,3937.8,3937.7,9.68947496]
[1761058041100,0.001,3938.2,3938.1,3.04617559]
[1761058041300,0.001,3938.2,3938.1,27.62434287]
[1761058041463,0.001,3938.2,3938.1,8.75207559]
[1761058042390,0.001,3938.2,3938.1,9.00667559]
[1761058042584,0.001,3938.2,3938.1,9.90668071]
[1761058043491,0.001,3938.2,3938.1,6.57268071]
[1761058043673,0.001,3938.2,3938.1,9.90668071]
[1761058045001,0.001,3938.2,3938.1,29.24824799]
[1761058045880,0.001,3938.2,3938.1,29.50284799]
[1761058047696,0.001,3938.2,3938.1,25.40736799]
[1761058048008,0.001,3938.2,3938.1,29.24824799]
[1761058048585,0.001,3938.2,3938.1,29.24724799]
[1761058048779,0.001,3938.2,3938.1,29.50184799]
[1761058049312,0.001,3938.2,3938.1,29.24724799]
[1761058049614,0.001,3938.2,3938.1,26.04064799]
[1761058049802,0.001,3938.2,3938.1,29.62824799]
[1761058050114,0.001,3938.2,3938.1,26.29524799]
[1761058050348,0.001,3938.2,3938.1,6.69908071]
[1761058050899,0.001,3938.2,3938.1,10.03208071]
[1761058051967,0.001,3938.2,3938.1,10.28668071]
[1761058052517,0.001,3938.2,3938.1,29.62824799]
[1761058053010,0.001,3938.2,3938.1,33.42824799]
[1761058055815,0.001,3938.2,3938.1,29.62824799]
[1761058056487,0.001,3938.7,3938.6,4.77385323]
[1761058056685,0.001,3938.7,3938.6,9.250353]
[1761058056899,0.001,3939.0,3938.9,2.53877986]
[1761058057213,0.001,3939.0,3938.9,27.82922714]
[1761058057512,0.001,3939.0,3938.9,8.23305986]
[1761058057806,0.001,3939.0,3938.9,8.69255986]
[1761058058013,0.001,3939.0,3938.9,10.17066525]
[1761058058410,0.001,3939.0,3938.9,10.42526525]
[1761058058909,0.001,3939.0,3938.9,7.09226525]
[1761058059143,0.001,3939.0,3938.9,9.71016525]
[1761058059430,0.001,3939.0,3938.9,10.42426525]
[1761058060419,0.6875,3941.0,3939.0,4.77359541]
[1761058060715,0.4607,3940.9,3940.7,0.50688]
[1761058061008,0.4607,3940.9,3940.8,3.96528]
[1761058061180,0.2268,3941.0,3940.8,5.69328]
[1761058061381,0.2268,3941.0,3940.9,0.50688]
[1761058061625,0.6875,3941.0,3940.9,0.50688]
[1761058061843,0.2268,3941.0,3940.9,2.23488]
[1761058062145,0.2268,3941.3,3941.1,0.50688]
[1761058062361,0.2268,3941.3,3940.5,2.53771162]
[1761058062362,0.2268,3941.3,3940.4,1.728]
[1761058062511,2.5373484,3941.2,3940.5,3.83888]
[1761058062712,0.2268,3941.3,3940.7,2.23488]
[1761058062928,0.453,3941.2,3940.7,2.23488]
[1761058063127,0.453,3941.2,3940.1,0.30565593]
[1761058063128,0.453,3941.2,3940.9,2.23488]
[1761058064507,0.453,3941.2,3941.0,3.331]
[1761058064706,0.453,3941.2,3941.1,0.50688]
[1761058065244,0.453,3941.2,3941.1,3.83788]
[1761058065552,0.2268,3941.3,3941.2,0.50688]
[1761058066044,0.453,3941.5,3941.2,0.51327588]
[1761058066358,0.453,3941.5,3941.3,0.50688]
[1761058066515,0.453,3941.5,3941.4,3.83788]
[1761058067042,0.2291,3941.6,3941.5,2.23488]
[1761058067252,0.2291,3941.6,3941.5,2.24127105]
[1761058067418,0.2291,3941.6,3941.5,2.23488]
[1761058067760,0.4485,3941.6,3941.5,2.23488]
[1761058068117,0.2313,3941.7,3941.5,2.23488]
[1761058068874,0.6798,3941.7,3941.5,2.23488]
[1761058069216,0.6798,3941.7,3940.7,19.82637874]
[1761058069217,0.4485,3941.6,3940.9,2.53743428]
[1761058069531,0.4485,3941.6,3941.1,2.23488]
[1761058069839,0.4485,3941.6,3941.3,1.728]
[1761058070045,2.53607567,3943.1,3941.4,0.50688]
[1761058070237,2.53682777,3942.0,3941.6,2.23488]
[1761058070445,2.53626864,3942.8,3941.6,2.23488]
[1761058070617,0.25360757,3943.0,3941.6,2.23488]
[1761058070815,0.25360757,3943.0,3941.7,0.00637988]
[1761058071019,2.53568983,3943.7,3941.6,3.04391853]
[1761058071243,0.03169692,3943.6,3941.8,2.23488]
[1761058071423,0.1264,3942.7,3942.2,0.50688]
[1761058071625,0.1264,3942.7,3942.4,0.50688]
[1761058072036,2.5408973,3942.6,3942.5,3.83688]
[1761058072233,2.80762703,3942.6,3942.5,3.83688]
[1761058072637,2.80762703,3942.6,3942.5,3.33]
[1761058073028,0.1264,3942.7,3942.6,0.50688]
[1761058073226,0.1264,3943.0,3942.6,0.50688]
[1761058073761,2.66255242,3943.0,3942.6,0.50688]
[1761058073963,0.1264,3943.0,3942.6,0.50688]
[1761058074167,2.66229089,3943.4,3942.8,0.1264]
[1761058074370,2.53605589,3943.2,3943.0,0.50688]
[1761058074665,0.39712909,3943.4,3943.0,0.50688]
[1761058074869,2.53607567,3943.1,3943.0,0.50688]
[1761058075068,2.53603204,3943.2,3943.0,0.50688]
[1761058075281,0.1264,3943.4,3943.0,0.50688]
[1761058075427,0.2391,3944.4,3943.1,0.66006459]
[1761058075628,2.53536871,3944.2,3943.3,0.50688]
[1761058075859,2.53554801,3944.0,3943.3,0.50688]
[1761058076068,2.53557238,3943.9,3943.3,0.50688]
[1761058076270,0.51202444,3944.4,3943.4,0.00635832]
[1761058076471,0.0045,3944.3,3943.3,0.50688]
[1761058076773,2.53980636,3944.3,3943.3,3.04277125]
[1761058076928,0.0045,3944.3,3943.4,1.728]
[1761058077133,0.2346,3944.4,3943.4,2.53586523]
[1761058077333,0.2346,3944.4,3943.3,2.23488]
[1761058077334,2.53538239,3944.2,3943.3,2.23488]
[1761058077529,0.1392,3944.9,3943.7,0.50688]
[1761058077735,0.1392,3944.9,3943.4,20.26153489]
[1761058077736,0.1392,3944.9,3943.9,2.23488]
[1761058077976,2.5349185,3944.9,3944.2,0.50688]
[1761058078266,0.099,3945.4,3944.4,0.50688]
[1761058078437,0.099,3945.4,3944.5,3.329]
[1761058078438,2.53473245,3945.2,3944.5,3.329]
[1761058078637,0.099,3945.4,3944.6,0.50688]
[1761058078964,2.63360092,3945.4,3944.6,5.19878431]
[1761058079167,0.0994,3945.9,3944.7,0.00633598]
[1761058079471,2.53440454,3945.7,3944.8,3.329]
[1761058079673,2.53440454,3945.7,3944.9,3.328]
[1761058079830,0.0994,3945.9,3945.0,0.50688]
[1761058080168,2.53451698,3945.6,3945.0,0.50688]
[1761058080373,0.0994,3945.9,3945.0,2.23488]
[1761058080528,0.1384,3946.7,3945.1,0.4288]
[1761058080729,0.0998,3946.2,3945.8,2.23488]
[1761058080934,0.0998,3946.2,3945.1,0.4288]
[1761058080935,0.1005,3947.5,3946.2,0.50688]
[1761058081132,0.1005,3947.5,3946.7,0.50688]
[1761058081330,0.1373,3948.2,3946.5,19.82637874]
[1761058081331,0.1373,3948.2,3946.9,2.23488]
[1761058081586,0.1013,3948.1,3946.9,2.23488]
[1761058081783,2.53305426,3947.9,3947.0,0.50688]
[1761058082093,2.53220268,3949.2,3947.0,0.50688]
[1761058082094,0.1016,3948.8,3948.1,0.50688]
[1761058082375,4.63134,3952.1,3948.7,2.23488]
[1761058082578,4.63134,3952.1,3948.0,0.2249]
[1761058082579,2.53089869,3951.2,3949.9,0.50688]
[1761058082738,0.474,3951.9,3950.2,0.50688]
[1761058082935,0.1384,3951.8,3950.2,0.50688]
[1761058083133,2.53120148,3950.7,3950.4,2.23488]
[1761058083374,0.31428367,3951.7,3950.6,0.50688]
[1761058083678,0.31428367,3951.7,3948.3,0.25327356]
[1761058083679,0.1384,3951.6,3948.2,0.4288]
[1761058083980,19.82637874,3951.5,3949.0,0.50688]
[1761058084315,0.1384,3951.5,3948.5,1.728]
[1761058084470,0.43185013,3952.2,3949.2,2.23488]
[1761058084471,0.1384,3951.4,3949.2,2.23488]
[1761058084673,2.53081264,3951.3,3949.4,0.50688]
[1761058084859,0.1384,3951.4,3949.6,0.50688]
[1761058085062,0.43185013,3952.2,3949.7,0.00624854]
[1761058085263,0.43185013,3952.2,3950.3,2.23488]
[1761058085569,0.0994,3952.2,3951.3,0.50688]
[1761058085800,2.53055119,3951.8,3951.4,3.334]
[1761058085981,0.0994,3952.2,3951.3,0.50688]
[1761058086292,0.0994,3952.2,3951.5,0.50688]
[1761058086293,2.53036437,3952.0,3951.5,0.50688]
[1761058086599,0.27997931,3951.9,3950.4,0.4288]
[1761058086807,2.53036437,3952.0,3950.5,1.05388]
[1761058086995,0.1384,3952.1,3950.5,1.05388]
[1761058087196,0.2378,3952.2,3950.7,2.23488]
[1761058087397,0.0994,3952.2,3950.9,0.50688]
[1761058087706,0.17002875,3952.1,3951.0,1.034]
[1761058087878,2.53081271,3951.3,3951.2,0.50688]
[1761058088082,0.0994,3952.2,3951.2,0.50688]
[1761058088294,0.0994,3952.2,3951.4,2.23488]
[1761058088496,0.9,3952.5,3952.1,0.2249]
[1761058088698,0.9,3952.5,3952.2,5.57988]
[1761058089203,0.9,3952.5,3952.2,2.23488]
[1761058089404,0.9,3952.5,3952.2,5.57988]
[1761058089576,0.9,3952.5,3952.2,5.58388]
[1761058090989,0.9,3952.5,3951.7,0.2249]
[1761058090990,0.5873,3952.3,3951.7,3.348]
[1761058091193,2.53049243,3951.8,3951.7,3.348]
[1761058091420,0.1383,3952.2,3951.1,3.349]
[1761058091717,0.001,3952.2,3951.2,0.00622957]
[1761058091900,0.001,3952.2,3948.4,0.2249]
[1761058091901,3.7889,3951.3,3948.4,0.2249]
[1761058092076,2.53146622,3950.3,3948.5,19.82637874]
[1761058092277,2.53152279,3950.2,3948.5,20.25517874]
[1761058092476,2.53072137,3951.5,3948.5,20.25517874]
[1761058092477,0.1369,3951.2,3949.6,19.82637874]
[1761058092714,0.1369,3951.2,3949.7,3.365]
[1761058092898,2.53170966,3949.9,3949.8,3.365]
[1761058093107,0.25317097,3949.9,3949.2,3.366]
[1761058093625,0.1369,3950.9,3949.2,3.366]
[1761058093812,0.1369,3950.9,3949.3,0.4288]
[1761058094140,2.5314503,3950.4,3949.4,2.53200778]
[1761058094296,0.1369,3951.5,3949.3,0.4288]
[1761058094297,0.1369,3951.5,3949.5,0.4288]
[1761058094485,2.5308351,3951.3,3950.1,0.50688]
[1761058094684,2.53056023,3951.7,3950.6,2.23488]
[1761058094885,0.3,3952.3,3950.6,2.23488]
[1761058094886,0.3,3952.3,3950.8,2.23488]
[1761058095188,0.3,3952.3,3951.1,0.50688]
[1761058095612,0.3,3952.3,3952.1,0.50688]
[1761058095777,0.3,3952.3,3952.0,0.1264]
[1761058095778,0.3,3952.3,3952.0,3.4924]
[1761058096109,2.5304284,3951.9,3951.7,0.50688]
[1761058096297,2.53034751,3952.1,3951.7,0.50688]
[1761058096498,2.83020088,3952.3,3951.7,0.63328]
[1761058096701,2.53049243,3951.8,3951.7,0.50688]
[1761058096907,0.1264,3952.1,3951.7,0.50688]
[1761058097080,0.1264,3952.1,3951.7,2.23488]
[1761058097279,0.001,3952.2,3951.7,2.23488]
[1761058097680,0.001,3952.2,3951.9,0.50688]
[1761058098018,0.001,3952.2,3951.8,0.50688]
[1761058098221,0.001,3952.2,3951.8,0.93568]
[1761058098533,0.001,3952.2,3951.8,0.50688]
[1761058098701,0.001,3952.2,3951.7,1.728]
[1761058098901,0.1511,3952.2,3951.7,1.789]
[1761058099088,19.82637874,3951.8,3948.7,0.3]
[1761058099318,2.53124016,3950.7,3948.7,0.3]
[1761058099515,2.53124016,3950.7,3948.4,0.2249]
[1761058099516,2.53197766,3949.5,3948.4,0.2249]
[1761058099754,2.53190593,3949.6,3948.4,0.2249]
[1761058099947,0.1362,3949.9,3948.4,0.2249]
[1761058100462,2.53203086,3949.4,3948.4,0.2249]
[1761058100620,0.1362,3949.9,3948.4,0.2249]
[1761058100823,2.53204222,3949.4,3948.4,0.2249]
[1761058101046,0.1362,3949.9,3948.4,0.2249]
[1761058101047,2.53213721,3949.3,3948.4,0.2249]
[1761058101261,0.1362,3949.9,3948.4,0.2249]
[1761058101262,2.53208059,3949.4,3948.4,0.2249]
[1761058101428,2.53197087,3949.5,3948.4,0.2249]
[1761058101762,3.03835103,3949.5,3948.4,0.2249]
[1761058101936,0.1362,3950.5,3948.7,2.53245321]
[1761058102252,1.728,3950.8,3948.6,0.50688]
[1761058102468,2.66754705,3950.5,3948.6,0.50688]
[1761058102618,0.1362,3950.5,3948.6,0.4461]
[1761058102821,0.1362,3951.3,3948.8,0.50688]
[1761058103153,0.1362,3951.3,3949.6,2.23488]
[1761058103465,0.1362,3951.3,3948.7,2.53245392]
[1761058103466,0.40288957,3951.3,3949.8,2.23488]
[1761058103626,0.1362,3952.0,3950.0,3.0385144]
[1761058103831,0.1362,3952.0,3950.3,0.50688]
[1761058104029,2.53062515,3951.6,3950.5,2.23488]
[1761058104230,2.68135977,3952.2,3950.9,2.23488]
[1761058104420,0.1511,3952.2,3951.0,0.50688]
[1761058104624,0.32812812,3952.1,3951.2,2.23488]
[1761058104930,0.1362,3952.0,3950.6,3.47]
[1761058105118,0.32812812,3952.1,3950.7,2.68068]
[1761058105322,0.001,3952.2,3951.3,0.50688]
[1761058105523,0.001,3952.2,3951.5,0.50688]
[1761058106053,0.001,3952.2,3951.5,2.23488]
[1761058106263,0.001,3952.2,3951.5,2.68068]
[1761058106688,0.001,3952.2,3950.2,2.78462925]
[1761058106689,2.53074859,3951.4,3947.0,2.53356254]
[1761058106965,19.82637874,3950.0,3947.6,0.06]
[1761058107130,2.53218586,3949.2,3949.0,0.1264]
[1761058107320,2.53222253,3949.1,3947.7,0.2349]
[1761058107516,0.1264,3948.9,3948.2,0.1264]
[1761058107953,2.5327356,3948.3,3948.2,0.1264]